[Event "Early-Titled-Tuesday-Blitz-January-16-2024"]
[Site "Chess.com"]
[Date "2024.01.16"]
[Round "9"]
[White "Alexchess1984"]
[Black "anasta10"]
[Result "1-0"]
[WhiteElo "2681"]
[BlackElo "2514"]
[TimeControl "180+1"]
[EndTime "9:49:05 PST"]
[Termination "Alexchess1984 won on time"]

1. e4 {[%clk 0:03:00.9]} 1... g6 {[%clk 0:02:59.7]} 2. d4 {[%clk 0:03:00.6]}
2... Bg7 {[%clk 0:02:59.6]} 3. Nf3 {[%clk 0:03:00.9]} 3... d6 {[%clk 0:02:59.9]}
4. c3 {[%clk 0:02:59.8]} 4... a6 {[%clk 0:02:59.8]} 5. Bd3 {[%clk 0:02:59.9]}
5... Nf6 {[%clk 0:02:59.6]} 6. O-O {[%clk 0:03:00.4]} 6... O-O {[%clk
0:02:59.8]} 7. Re1 {[%clk 0:03:01]} 7... c5 {[%clk 0:03:00]} 8. h3 {[%clk
0:02:47.4]} 8... Nc6 {[%clk 0:02:53.2]} 9. d5 {[%clk 0:02:46]} 9... Na7 {[%clk
0:02:46.8]} 10. a4 {[%clk 0:02:42.6]} 10... e6 {[%clk 0:02:35.9]} 11. dxe6
{[%clk 0:02:26.4]} 11... Bxe6 {[%clk 0:02:34.5]} 12. Nbd2 {[%clk 0:02:22]} 12...
Nc6 {[%clk 0:02:33.8]} 13. Nf1 {[%clk 0:02:18.2]} 13... d5 {[%clk 0:02:02.4]}
14. e5 {[%clk 0:02:18]} 14... Nd7 {[%clk 0:02:02.2]} 15. Bf4 {[%clk 0:02:18.2]}
15... Re8 {[%clk 0:01:50.5]} 16. Ng3 {[%clk 0:02:12.7]} 16... Qc7 {[%clk
0:01:30.8]} 17. Qe2 {[%clk 0:02:12]} 17... Rad8 {[%clk 0:01:30]} 18. Rad1 {[%clk
0:02:10.5]} 18... Qa5 {[%clk 0:01:29.8]} 19. Bc2 {[%clk 0:02:09.8]} 19... b5
{[%clk 0:01:27.3]} 20. axb5 {[%clk 0:02:09.6]} 20... axb5 {[%clk 0:01:28.2]} 21.
Ra1 {[%clk 0:01:47.5]} 21... Qb6 {[%clk 0:01:27.4]} 22. Qd2 {[%clk 0:01:28.4]}
22... b4 {[%clk 0:01:25.4]} 23. Ba4 {[%clk 0:01:15.4]} 23... Rb8 {[%clk
0:01:19.3]} 24. Bxc6 {[%clk 0:01:14.5]} 24... Qxc6 {[%clk 0:01:19.5]} 25. Bh6
{[%clk 0:01:14.9]} 25... bxc3 {[%clk 0:01:17.7]} 26. bxc3 {[%clk 0:01:13.6]}
26... Bh8 {[%clk 0:01:17.1]} 27. Qg5 {[%clk 0:01:07.1]} 27... Ra8 {[%clk
0:01:13.2]} 28. Nh5 {[%clk 0:00:44.8]} 28... Qc7 {[%clk 0:01:02.7]} 29. Rxa8
{[%clk 0:00:41]} 29... Rxa8 {[%clk 0:01:02.3]} 30. Qh4 {[%clk 0:00:30]} 30... d4
{[%clk 0:00:29.1]} 31. cxd4 {[%clk 0:00:22.6]} 31... c4 {[%clk 0:00:29.2]} 32.
Bg5 {[%clk 0:00:18.9]} 32... Bd5 {[%clk 0:00:20.6]} 33. Nf6+ {[%clk 0:00:17.1]}
33... Nxf6 {[%clk 0:00:18.9]} 34. Bxf6 {[%clk 0:00:17.7]} 34... Bxf3 {[%clk
0:00:11.6]} 35. Bxh8 {[%clk 0:00:17.3]} 35... Kxh8 {[%clk 0:00:10.8]} 36. Qf6+
{[%clk 0:00:17.6]} 36... Kg8 {[%clk 0:00:10.6]} 37. Qxf3 {[%clk 0:00:18.2]}
37... Re8 {[%clk 0:00:08.1]} 38. d5 {[%clk 0:00:18.6]} 38... Rxe5 {[%clk
0:00:06.2]} 39. Ra1 {[%clk 0:00:17.8]} 39... Re8 {[%clk 0:00:05.1]} 40. Qc3
{[%clk 0:00:16.7]} 40... Rc8 {[%clk 0:00:04.2]} 41. Rd1 {[%clk 0:00:15.1]} 41...
Qd6 {[%clk 0:00:03.9]} 42. Rd4 {[%clk 0:00:15.6]} 42... h5 {[%clk 0:00:01.8]}
43. Rxc4 {[%clk 0:00:15.5]} 43... Re8 {[%clk 0:00:02.5]} 44. Rd4 {[%clk
0:00:15]} 44... Re5 {[%clk 0:00:02.5]} 45. Qc8+ {[%clk 0:00:13.9]} 45... Kh7
{[%clk 0:00:02.8]} 46. g3 {[%clk 0:00:13]} 46... Re1+ {[%clk 0:00:02.8]} 47. Kg2
{[%clk 0:00:12.9]} 47... Re5 {[%clk 0:00:03.7]} 48. Qc4 {[%clk 0:00:12.7]} 48...
Kg7 {[%clk 0:00:04]} 49. Qc3 {[%clk 0:00:12.2]} 49... Kh7 {[%clk 0:00:04]} 50.
Qd3 {[%clk 0:00:12.7]} 50... Kg7 {[%clk 0:00:03.2]} 51. h4 {[%clk 0:00:13.3]}
51... Kh7 {[%clk 0:00:03.7]} 52. Rf4 {[%clk 0:00:12.5]} 52... Kg7 {[%clk
0:00:03.2]} 53. Rd4 {[%clk 0:00:10.4]} 53... Kh7 {[%clk 0:00:03.7]} 54. Qd2
{[%clk 0:00:09.7]} 54... Kg7 {[%clk 0:00:04]} 55. Qf4 {[%clk 0:00:10.2]} 55...
Kh7 {[%clk 0:00:02.7]} 56. Qxf7+ {[%clk 0:00:09.5]} 56... Kh6 {[%clk 0:00:03.2]}
57. Qf4+ {[%clk 0:00:09]} 57... Kg7 {[%clk 0:00:03.6]} 58. Kh2 {[%clk
0:00:08.7]} 1-0

[Event "Early-Titled-Tuesday-Blitz-January-16-2024"]
[Site "Chess.com"]
[Date "2024.01.16"]
[Round "9"]
[White "Balla_Tamas"]
[Black "hmatyi07"]
[Result "0-1"]
[WhiteElo "2452"]
[BlackElo "2234"]
[TimeControl "180+1"]
[EndTime "9:49:06 PST"]
[Termination "hmatyi07 won by checkmate"]

1. e3 {[%clk 0:03:00.7]} 1... Nf6 {[%clk 0:02:57.6]} 2. b3 {[%clk 0:02:56.5]}
2... g6 {[%clk 0:02:57.2]} 3. Bb2 {[%clk 0:02:55.7]} 3... Bg7 {[%clk 0:02:57.9]}
4. Nf3 {[%clk 0:02:49.8]} 4... O-O {[%clk 0:02:57.1]} 5. d4 {[%clk 0:02:37.8]}
5... b6 {[%clk 0:02:56]} 6. Bd3 {[%clk 0:02:37.4]} 6... Bb7 {[%clk 0:02:56.2]}
7. Nbd2 {[%clk 0:02:37.3]} 7... d6 {[%clk 0:02:54.6]} 8. O-O {[%clk 0:02:36.8]}
8... Nbd7 {[%clk 0:02:54.9]} 9. e4 {[%clk 0:02:34.4]} 9... c5 {[%clk 0:02:48.5]}
10. e5 {[%clk 0:02:28.3]} 10... Ne8 {[%clk 0:02:40.2]} 11. Re1 {[%clk
0:02:22.2]} 11... cxd4 {[%clk 0:02:37.6]} 12. e6 {[%clk 0:02:20.5]} 12... fxe6
{[%clk 0:02:34.5]} 13. Nxd4 {[%clk 0:02:18.3]} 13... Bxd4 {[%clk 0:02:30.4]} 14.
Bxd4 {[%clk 0:02:16.8]} 14... e5 {[%clk 0:02:30.6]} 15. Bb2 {[%clk 0:02:15]}
15... Nef6 {[%clk 0:02:23.8]} 16. Nf3 {[%clk 0:02:05.5]} 16... e4 {[%clk
0:01:51.6]} 17. Rxe4 {[%clk 0:01:23.2]} 17... Nxe4 {[%clk 0:01:49.3]} 18. Bc4+
{[%clk 0:01:21.5]} 18... Rf7 {[%clk 0:01:35.8]} 19. Qd4 {[%clk 0:01:14]} 19...
Nef6 {[%clk 0:01:29.5]} 20. Bxf7+ {[%clk 0:00:47.9]} 20... Kxf7 {[%clk
0:01:30.4]} 21. Ng5+ {[%clk 0:00:48.5]} 21... Kg8 {[%clk 0:01:26.8]} 22. Ne6
{[%clk 0:00:42.5]} 22... Qc8 {[%clk 0:01:20.2]} 23. Qh4 {[%clk 0:00:39.4]} 23...
Qc6 {[%clk 0:01:05.9]} 24. f3 {[%clk 0:00:38.2]} 24... Qd5 {[%clk 0:00:52.2]}
25. Re1 {[%clk 0:00:36.3]} 25... Ne5 {[%clk 0:00:43.9]} 26. Ng5 {[%clk
0:00:22.5]} 26... Rc8 {[%clk 0:00:38.7]} 27. c4 {[%clk 0:00:21.6]} 27... Qd2
{[%clk 0:00:35.2]} 28. Bxe5 {[%clk 0:00:18.2]} 28... dxe5 {[%clk 0:00:33.4]} 29.
Rf1 {[%clk 0:00:17.4]} 29... Rd8 {[%clk 0:00:21.6]} 30. Kh1 {[%clk 0:00:17.1]}
30... Qe2 {[%clk 0:00:20.1]} 31. Rg1 {[%clk 0:00:15.3]} 31... Qxa2 {[%clk
0:00:20.1]} 32. Qh3 {[%clk 0:00:15.7]} 32... Bc8 {[%clk 0:00:16.4]} 33. Qg3
{[%clk 0:00:14.4]} 33... Qd2 {[%clk 0:00:15.3]} 34. Qxe5 {[%clk 0:00:13.1]}
34... Qd6 {[%clk 0:00:12.9]} 35. Qe3 {[%clk 0:00:11.8]} 35... Qd2 {[%clk
0:00:10.8]} 36. Qe5 {[%clk 0:00:11.4]} 36... Qd6 {[%clk 0:00:10.6]} 37. Qb2
{[%clk 0:00:08.8]} 37... Qd2 {[%clk 0:00:09.5]} 38. Qa3 {[%clk 0:00:08.5]} 38...
Qxg5 {[%clk 0:00:09]} 39. Qxe7 {[%clk 0:00:08.9]} 39... Rf8 {[%clk 0:00:03.9]}
40. Qxa7 {[%clk 0:00:09.2]} 40... Qf4 {[%clk 0:00:03.7]} 41. Qxb6 {[%clk
0:00:08.9]} 41... Nh5 {[%clk 0:00:03.9]} 42. Re1 {[%clk 0:00:04.1]} 42... Bh3
{[%clk 0:00:03.1]} 43. Qf2 {[%clk 0:00:03.1]} 43... Bf5 {[%clk 0:00:02.6]} 44.
Qe2 {[%clk 0:00:02.9]} 44... Qh6 {[%clk 0:00:01.9]} 45. c5 {[%clk 0:00:03.4]}
45... Ng3+ {[%clk 0:00:02.1]} 46. Kg1 {[%clk 0:00:03.5]} 46... Nxe2+ {[%clk
0:00:03]} 47. Rxe2 {[%clk 0:00:04.4]} 47... Qc1+ {[%clk 0:00:03.2]} 48. Kf2
{[%clk 0:00:05.2]} 48... Qxc5+ {[%clk 0:00:03.5]} 49. Kg3 {[%clk 0:00:06.1]}
49... Qb4 {[%clk 0:00:03.8]} 50. Kf2 {[%clk 0:00:06.8]} 50... Qxb3 {[%clk
0:00:04.4]} 51. Kg3 {[%clk 0:00:07.2]} 51... Qf7 {[%clk 0:00:05]} 52. f4 {[%clk
0:00:07.3]} 52... Be6 {[%clk 0:00:05.5]} 53. Kf2 {[%clk 0:00:07.3]} 53... Qxf4+
{[%clk 0:00:05.9]} 54. Ke1 {[%clk 0:00:08]} 54... Qf1+ {[%clk 0:00:06.3]} 55.
Kd2 {[%clk 0:00:08.4]} 55... Rd8+ {[%clk 0:00:07]} 56. Ke3 {[%clk 0:00:08.6]}
56... Qf5 {[%clk 0:00:06.7]} 57. g3 {[%clk 0:00:08.2]} 57... Qe5+ {[%clk
0:00:07.2]} 58. Kf3 {[%clk 0:00:08.7]} 58... Qf5+ {[%clk 0:00:07.5]} 59. Kg2
{[%clk 0:00:09.3]} 59... Rf8 {[%clk 0:00:07.8]} 60. g4 {[%clk 0:00:08.8]} 60...
Qf3+ {[%clk 0:00:08.1]} 61. Kg1 {[%clk 0:00:08.2]} 61... Qxe2 {[%clk 0:00:08.8]}
62. Kh1 {[%clk 0:00:08.3]} 62... Rf1# {[%clk 0:00:09.6]} 0-1

[Event "Early-Titled-Tuesday-Blitz-January-16-2024"]
[Site "Chess.com"]
[Date "2024.01.16"]
[Round "9"]
[White "Jospem"]
[Black "LyonBeast"]
[Result "0-1"]
[WhiteElo "3086"]
[BlackElo "3165"]
[TimeControl "180+1"]
[EndTime "9:49:13 PST"]
[Termination "LyonBeast won by checkmate"]

1. e4 {[%clk 0:03:00.7]} 1... c5 {[%clk 0:02:59.6]} 2. Nf3 {[%clk 0:03:00.6]}
2... d6 {[%clk 0:02:59.1]} 3. c3 {[%clk 0:03:01.3]} 3... Nf6 {[%clk 0:02:58.6]}
4. h3 {[%clk 0:02:58.1]} 4... g6 {[%clk 0:02:54.1]} 5. Bd3 {[%clk 0:02:57.9]}
5... Bg7 {[%clk 0:02:53]} 6. Bc2 {[%clk 0:02:58.4]} 6... e5 {[%clk 0:02:43.4]}
7. O-O {[%clk 0:02:56.7]} 7... O-O {[%clk 0:02:42.9]} 8. d3 {[%clk 0:02:57]}
8... b6 {[%clk 0:02:38.8]} 9. Bg5 {[%clk 0:02:56.4]} 9... Nbd7 {[%clk
0:02:38.5]} 10. Qd2 {[%clk 0:02:40.2]} 10... Bb7 {[%clk 0:02:38]} 11. c4 {[%clk
0:02:38.6]} 11... Qb8 {[%clk 0:02:24]} 12. Ba4 {[%clk 0:02:33.5]} 12... Qc7
{[%clk 0:02:07.6]} 13. Nc3 {[%clk 0:02:33.3]} 13... a6 {[%clk 0:02:08.3]} 14.
Rae1 {[%clk 0:02:16.8]} 14... Rab8 {[%clk 0:02:06.1]} 15. Nh2 {[%clk 0:02:01.8]}
15... h5 {[%clk 0:01:59.9]} 16. f4 {[%clk 0:01:48.5]} 16... exf4 {[%clk
0:01:57.1]} 17. Bxd7 {[%clk 0:01:48.4]} 17... Nxd7 {[%clk 0:01:55.1]} 18. Bxf4
{[%clk 0:01:48.9]} 18... Ne5 {[%clk 0:01:53.9]} 19. Nf3 {[%clk 0:01:44.4]} 19...
Nxf3+ {[%clk 0:01:47.8]} 20. Rxf3 {[%clk 0:01:42.3]} 20... Rbe8 {[%clk
0:01:48.5]} 21. Bh6 {[%clk 0:01:39.8]} 21... f5 {[%clk 0:01:44.7]} 22. Rg3
{[%clk 0:01:26.8]} 22... Kh7 {[%clk 0:01:42.7]} 23. Bxg7 {[%clk 0:01:06.8]}
23... Qxg7 {[%clk 0:01:43.6]} 24. exf5 {[%clk 0:01:07.1]} 24... Rxe1+ {[%clk
0:01:41.6]} 25. Qxe1 {[%clk 0:01:08]} 25... Rxf5 {[%clk 0:01:41.9]} 26. Ne4
{[%clk 0:01:02]} 26... Qd4+ {[%clk 0:01:39.3]} 27. Re3 {[%clk 0:00:36.5]} 27...
Bxe4 {[%clk 0:01:35.5]} 28. dxe4 {[%clk 0:00:37.4]} 28... Rf4 {[%clk 0:01:31.5]}
29. Kh2 {[%clk 0:00:32]} 29... Qxc4 {[%clk 0:01:30.6]} 30. e5 {[%clk 0:00:30.7]}
30... Rf1 {[%clk 0:01:06.5]} 31. Qg3 {[%clk 0:00:30.5]} 31... h4 {[%clk
0:00:56.5]} 32. Qg5 {[%clk 0:00:26.6]} 32... Rf5 {[%clk 0:00:41.8]} 33. Qe7+
{[%clk 0:00:23.9]} 33... Rf7 {[%clk 0:00:42.2]} 34. Qg5 {[%clk 0:00:19.6]} 34...
dxe5 {[%clk 0:00:42.6]} 35. Rxe5 {[%clk 0:00:20.1]} 35... Qf4+ {[%clk
0:00:40.4]} 36. Qxf4 {[%clk 0:00:20.4]} 36... Rxf4 {[%clk 0:00:41.3]} 37. Re6
{[%clk 0:00:17.5]} 37... Rb4 {[%clk 0:00:41.1]} 38. b3 {[%clk 0:00:18.1]} 38...
a5 {[%clk 0:00:35.8]} 39. Kg1 {[%clk 0:00:18.5]} 39... Kh6 {[%clk 0:00:36.1]}
40. Rd6 {[%clk 0:00:15.8]} 40... Kg5 {[%clk 0:00:35.1]} 41. Kf2 {[%clk
0:00:16.3]} 41... Kf5 {[%clk 0:00:32.4]} 42. Kf3 {[%clk 0:00:15.6]} 42... g5
{[%clk 0:00:28.2]} 43. Rc6 {[%clk 0:00:13.8]} 43... a4 {[%clk 0:00:27.4]} 44.
bxa4 {[%clk 0:00:13.9]} 44... Rxa4 {[%clk 0:00:28.3]} 45. Rxb6 {[%clk
0:00:12.7]} 45... Ra3+ {[%clk 0:00:28.7]} 46. Kf2 {[%clk 0:00:12.9]} 46... Rxa2+
{[%clk 0:00:28.9]} 47. Kf3 {[%clk 0:00:13.6]} 47... Ra3+ {[%clk 0:00:28.9]} 48.
Kf2 {[%clk 0:00:14]} 48... Rd3 {[%clk 0:00:21.5]} 49. Rc6 {[%clk 0:00:13.2]}
49... Rc3 {[%clk 0:00:15.6]} 50. Rc8 {[%clk 0:00:12.3]} 50... c4 {[%clk
0:00:14.9]} 51. Re8 {[%clk 0:00:09.9]} 51... Kf4 {[%clk 0:00:14.8]} 52. Rf8+
{[%clk 0:00:09]} 52... Ke4 {[%clk 0:00:15.5]} 53. Re8+ {[%clk 0:00:09.3]} 53...
Kd3 {[%clk 0:00:15.2]} 54. Rd8+ {[%clk 0:00:09.4]} 54... Kc2 {[%clk 0:00:14.9]}
55. Rd5 {[%clk 0:00:10.1]} 55... Rd3 {[%clk 0:00:14.4]} 56. Rxg5 {[%clk
0:00:10.3]} 56... Kd2 {[%clk 0:00:12.5]} 57. Re5 {[%clk 0:00:06.5]} 57... c3
{[%clk 0:00:11.4]} 58. Re2+ {[%clk 0:00:07.2]} 58... Kc1 {[%clk 0:00:10.6]} 59.
Re4 {[%clk 0:00:07.7]} 59... c2 {[%clk 0:00:10.8]} 60. Rxh4 {[%clk 0:00:07.4]}
60... Kb2 {[%clk 0:00:10.6]} 61. Rc4 {[%clk 0:00:06]} 61... Rc3 {[%clk
0:00:11.1]} 62. Rb4+ {[%clk 0:00:06.6]} 62... Ka3 {[%clk 0:00:11.3]} 63. Rg4
{[%clk 0:00:06.1]} 63... c1=Q {[%clk 0:00:11.6]} 64. h4 {[%clk 0:00:07]} 64...
Qe3+ {[%clk 0:00:11.3]} 65. Kf1 {[%clk 0:00:01.3]} 65... Rc1# {[%clk 0:00:11.1]}
0-1

[Event "Early-Titled-Tuesday-Blitz-January-16-2024"]
[Site "Chess.com"]
[Date "2024.01.16"]
[Round "9"]
[White "laiciffOneslraCsungaM"]
[Black "bazar-wokzal"]
[Result "1-0"]
[WhiteElo "2382"]
[BlackElo "2563"]
[TimeControl "180+1"]
[EndTime "9:49:18 PST"]
[Termination "laiciffOneslraCsungaM won on time"]

1. d4 {[%clk 0:03:00.9]} 1... Nf6 {[%clk 0:02:59.4]} 2. Nc3 {[%clk 0:02:59.9]}
2... d5 {[%clk 0:02:59.3]} 3. Bf4 {[%clk 0:03:00.4]} 3... e6 {[%clk 0:02:58.8]}
4. Nb5 {[%clk 0:02:55.4]} 4... Na6 {[%clk 0:02:58.3]} 5. e3 {[%clk 0:02:54.7]}
5... c6 {[%clk 0:02:55.9]} 6. Nc3 {[%clk 0:02:52.3]} 6... Bb4 {[%clk 0:02:55.3]}
7. Nf3 {[%clk 0:02:48.1]} 7... Ne4 {[%clk 0:02:54.5]} 8. Qd3 {[%clk 0:02:38.9]}
8... Qa5 {[%clk 0:02:53.6]} 9. Nd2 {[%clk 0:02:26.8]} 9... Nxc3 {[%clk
0:02:47.4]} 10. bxc3 {[%clk 0:02:26.7]} 10... Bxc3 {[%clk 0:02:47.2]} 11. Rd1
{[%clk 0:02:26.1]} 11... O-O {[%clk 0:02:40.4]} 12. Be2 {[%clk 0:02:21.3]} 12...
c5 {[%clk 0:02:40.5]} 13. e4 {[%clk 0:02:18.3]} 13... cxd4 {[%clk 0:02:30.2]}
14. O-O {[%clk 0:02:16.2]} 14... Nb4 {[%clk 0:02:29.6]} 15. Qg3 {[%clk
0:02:13.1]} 15... Nxc2 {[%clk 0:02:07.9]} 16. Bd3 {[%clk 0:02:08.3]} 16... Nb4
{[%clk 0:02:01.7]} 17. Bh6 {[%clk 0:01:46.7]} 17... g6 {[%clk 0:02:00.9]} 18.
Bxf8 {[%clk 0:01:26.2]} 18... Kxf8 {[%clk 0:02:01.8]} 19. Qd6+ {[%clk
0:01:21.9]} 19... Kg7 {[%clk 0:01:54.1]} 20. Nb3 {[%clk 0:01:21.5]} 20... Qb6
{[%clk 0:01:48.1]} 21. Qe5+ {[%clk 0:01:06.6]} 21... f6 {[%clk 0:01:47.9]} 22.
Qg3 {[%clk 0:01:06.3]} 22... Nxd3 {[%clk 0:01:30.9]} 23. Qxd3 {[%clk 0:01:02.6]}
23... dxe4 {[%clk 0:01:28.7]} 24. Qxe4 {[%clk 0:01:03.5]} 24... e5 {[%clk
0:01:29]} 25. h4 {[%clk 0:00:51.6]} 25... Bf5 {[%clk 0:01:28.3]} 26. Qd5 {[%clk
0:00:51.5]} 26... Rd8 {[%clk 0:01:27.2]} 27. Qc4 {[%clk 0:00:50.4]} 27... Qc6
{[%clk 0:01:17.8]} 28. Qe2 {[%clk 0:00:25.2]} 28... a5 {[%clk 0:01:06.3]} 29.
Nd2 {[%clk 0:00:19.7]} 29... b5 {[%clk 0:01:03.8]} 30. f3 {[%clk 0:00:18.4]}
30... a4 {[%clk 0:00:55.3]} 31. Ne4 {[%clk 0:00:18.4]} 31... Qc4 {[%clk
0:00:46.9]} 32. Qxc4 {[%clk 0:00:15.4]} 32... bxc4 {[%clk 0:00:47]} 33. Nxc3
{[%clk 0:00:16]} 33... Bd3 {[%clk 0:00:46.9]} 34. Ne4 {[%clk 0:00:11.6]} 34...
Bxf1 {[%clk 0:00:45.4]} 35. Kxf1 {[%clk 0:00:12.5]} 35... f5 {[%clk 0:00:40.5]}
36. Nc5 {[%clk 0:00:11.6]} 36... Kf6 {[%clk 0:00:37.4]} 37. Nxa4 {[%clk
0:00:10.6]} 37... e4 {[%clk 0:00:32.5]} 38. Ke2 {[%clk 0:00:04.3]} 38... Ke5
{[%clk 0:00:28]} 39. Nb6 {[%clk 0:00:03.8]} 39... c3 {[%clk 0:00:23.6]} 40. a4
{[%clk 0:00:01.5]} 40... d3+ {[%clk 0:00:19.7]} 41. Ke3 {[%clk 0:00:01.8]} 41...
c2 {[%clk 0:00:20.2]} 42. Rc1 {[%clk 0:00:01.5]} 42... d2 {[%clk 0:00:20.1]} 43.
Nc4+ {[%clk 0:00:02]} 43... Kf6 {[%clk 0:00:16]} 44. Nxd2 {[%clk 0:00:02.9]}
44... f4+ {[%clk 0:00:16.1]} 45. Kxe4 {[%clk 0:00:02.2]} 45... Rxd2 {[%clk
0:00:15.1]} 46. Kxf4 {[%clk 0:00:03.1]} 46... Rxg2 {[%clk 0:00:14.4]} 47. a5
{[%clk 0:00:02.4]} 47... Rd2 {[%clk 0:00:10.1]} 48. a6 {[%clk 0:00:02.2]} 48...
Rd6 {[%clk 0:00:08.8]} 49. a7 {[%clk 0:00:02.1]} 49... Ra6 {[%clk 0:00:08.7]}
50. Rxc2 {[%clk 0:00:02.6]} 50... Rxa7 {[%clk 0:00:08.5]} 51. Rc6+ {[%clk
0:00:03.3]} 51... Kg7 {[%clk 0:00:08.9]} 52. Kg5 {[%clk 0:00:02.4]} 52... Ra5+
{[%clk 0:00:08.5]} 53. Kg4 {[%clk 0:00:02.2]} 53... Kh6 {[%clk 0:00:08.6]} 54.
f4 {[%clk 0:00:02.7]} 54... Ra1 {[%clk 0:00:08.1]} 55. Rb6 {[%clk 0:00:03.2]}
55... Rg1+ {[%clk 0:00:07.8]} 56. Kf3 {[%clk 0:00:03.6]} 56... Kh5 {[%clk
0:00:07.8]} 57. Rb7 {[%clk 0:00:01.7]} 57... h6 {[%clk 0:00:07.8]} 58. Rb6
{[%clk 0:00:02.1]} 58... Kxh4 {[%clk 0:00:07.7]} 59. Rb7 {[%clk 0:00:02.7]}
59... Rf1+ {[%clk 0:00:06.4]} 60. Ke3 {[%clk 0:00:01.8]} 60... Kg4 {[%clk
0:00:06]} 61. Rh7 {[%clk 0:00:02.3]} 1-0

[Event "Early-Titled-Tuesday-Blitz-January-16-2024"]
[Site "Chess.com"]
[Date "2024.01.16"]
[Round "9"]
[White "NelsonLinda"]
[Black "IngOscarArdila"]
[Result "1-0"]
[WhiteElo "2596"]
[BlackElo "2367"]
[TimeControl "180+1"]
[EndTime "9:49:20 PST"]
[Termination "NelsonLinda won by checkmate"]

1. b4 {[%clk 0:02:52]} 1... Nf6 {[%clk 0:02:59.6]} 2. Bb2 {[%clk 0:02:48.3]}
2... e6 {[%clk 0:03:00.5]} 3. b5 {[%clk 0:02:45.5]} 3... Be7 {[%clk 0:03:00.7]}
4. Nf3 {[%clk 0:02:44.9]} 4... O-O {[%clk 0:03:01.1]} 5. e3 {[%clk 0:02:45.3]}
5... d6 {[%clk 0:03:01.4]} 6. Be2 {[%clk 0:02:44.9]} 6... Nbd7 {[%clk
0:03:01.8]} 7. d4 {[%clk 0:02:44.8]} 7... c6 {[%clk 0:03:01.1]} 8. a4 {[%clk
0:02:44.3]} 8... Qc7 {[%clk 0:03:01.4]} 9. O-O {[%clk 0:02:44.3]} 9... e5 {[%clk
0:03:01.5]} 10. c4 {[%clk 0:02:43.7]} 10... Re8 {[%clk 0:03:00.6]} 11. a5 {[%clk
0:02:43]} 11... exd4 {[%clk 0:02:58.3]} 12. exd4 {[%clk 0:02:42.9]} 12... Nf8
{[%clk 0:02:53.2]} 13. Re1 {[%clk 0:02:40.3]} 13... Ng6 {[%clk 0:02:51.6]} 14.
Nbd2 {[%clk 0:02:33.7]} 14... Bf5 {[%clk 0:02:49.1]} 15. Qb3 {[%clk 0:02:33]}
15... Ne4 {[%clk 0:02:35.7]} 16. Nxe4 {[%clk 0:02:30.2]} 16... Bxe4 {[%clk
0:02:36]} 17. Nd2 {[%clk 0:02:31.1]} 17... Bf5 {[%clk 0:02:34.1]} 18. Nf1 {[%clk
0:02:26.8]} 18... Bf6 {[%clk 0:02:32.6]} 19. Ng3 {[%clk 0:02:24.8]} 19... Be6
{[%clk 0:02:31]} 20. Nh5 {[%clk 0:02:22.5]} 20... d5 {[%clk 0:02:09.7]} 21.
Nxf6+ {[%clk 0:02:19.8]} 21... gxf6 {[%clk 0:02:10.6]} 22. a6 {[%clk 0:01:40.9]}
22... cxb5 {[%clk 0:02:04.8]} 23. cxb5 {[%clk 0:01:39.7]} 23... bxa6 {[%clk
0:02:04.7]} 24. bxa6 {[%clk 0:01:30.8]} 24... Rab8 {[%clk 0:02:02.9]} 25. Qc3
{[%clk 0:01:30.9]} 25... Qf4 {[%clk 0:01:56.2]} 26. Ba3 {[%clk 0:01:25.7]} 26...
Rec8 {[%clk 0:01:53.5]} 27. Bc5 {[%clk 0:01:25.7]} 27... Rc7 {[%clk 0:01:49.8]}
28. Qg3 {[%clk 0:01:23.8]} 28... Rbc8 {[%clk 0:01:47.7]} 29. Bd3 {[%clk
0:01:17.9]} 29... Qg5 {[%clk 0:01:43.8]} 30. Qxg5 {[%clk 0:01:11.2]} 30... fxg5
{[%clk 0:01:43.9]} 31. g3 {[%clk 0:01:12.1]} 31... Kg7 {[%clk 0:01:43.1]} 32.
Reb1 {[%clk 0:01:11.4]} 32... Ne7 {[%clk 0:01:16]} 33. Rb7 {[%clk 0:01:10.4]}
33... Nc6 {[%clk 0:01:15.5]} 34. Bb5 {[%clk 0:01:10.4]} 34... Bh3 {[%clk
0:00:43.9]} 35. Rxc7 {[%clk 0:00:59.6]} 35... Rxc7 {[%clk 0:00:41.9]} 36. Bxc6
{[%clk 0:01:00.3]} 36... Rxc6 {[%clk 0:00:42.1]} 37. Bxa7 {[%clk 0:01:00.9]}
37... Rc8 {[%clk 0:00:37.9]} 38. Bb6 {[%clk 0:00:54.2]} 38... Ra8 {[%clk
0:00:38.8]} 39. a7 {[%clk 0:00:54.3]} 39... Kf6 {[%clk 0:00:30.6]} 40. f3 {[%clk
0:00:52.9]} 40... Ke7 {[%clk 0:00:28.4]} 41. Bc7 {[%clk 0:00:53]} 41... Kd7
{[%clk 0:00:27.7]} 42. Bb8 {[%clk 0:00:53.5]} 42... Kc6 {[%clk 0:00:26]} 43.
Ra6+ {[%clk 0:00:48.6]} 43... Kb7 {[%clk 0:00:23.8]} 44. Rh6 {[%clk 0:00:45.9]}
44... Bf5 {[%clk 0:00:23.6]} 45. Rf6 {[%clk 0:00:44.8]} 45... Be6 {[%clk
0:00:19.7]} 46. f4 {[%clk 0:00:42.5]} 46... gxf4 {[%clk 0:00:19.5]} 47. gxf4
{[%clk 0:00:43.4]} 47... Rxb8 {[%clk 0:00:19.8]} 48. axb8=N {[%clk 0:00:36.3]}
48... Kxb8 {[%clk 0:00:20.7]} 49. f5 {[%clk 0:00:35.9]} 49... Bd7 {[%clk
0:00:20.2]} 50. Rxf7 {[%clk 0:00:36.2]} 50... Kc7 {[%clk 0:00:20.4]} 51. Rxh7
{[%clk 0:00:34.8]} 51... Kd6 {[%clk 0:00:21.1]} 52. f6 {[%clk 0:00:30.5]} 52...
Bf5 {[%clk 0:00:20.7]} 53. Re7 {[%clk 0:00:30.7]} 53... Bg6 {[%clk 0:00:19.5]}
54. Kf2 {[%clk 0:00:30.6]} 54... Be4 {[%clk 0:00:18.9]} 55. Kg3 {[%clk
0:00:31.5]} 55... Bg6 {[%clk 0:00:19.1]} 56. Kf4 {[%clk 0:00:32.4]} 56... Bd3
{[%clk 0:00:18.8]} 57. Kg5 {[%clk 0:00:32.7]} 57... Bh7 {[%clk 0:00:18.5]} 58.
h4 {[%clk 0:00:33.6]} 58... Bd3 {[%clk 0:00:18.2]} 59. Kh6 {[%clk 0:00:33.9]}
59... Be4 {[%clk 0:00:16.3]} 60. Kg7 {[%clk 0:00:34.8]} 60... Kc6 {[%clk
0:00:15.7]} 61. Kf8 {[%clk 0:00:35.2]} 61... Kb5 {[%clk 0:00:16.6]} 62. Kg7
{[%clk 0:00:31.8]} 62... Kc4 {[%clk 0:00:17.5]} 63. f7 {[%clk 0:00:32.2]} 63...
Kxd4 {[%clk 0:00:18.4]} 64. f8=Q {[%clk 0:00:33]} 64... Kd3 {[%clk 0:00:18.7]}
65. Qf1+ {[%clk 0:00:32.8]} 65... Kd4 {[%clk 0:00:18.7]} 66. Ra7 {[%clk
0:00:32.8]} 66... Ke5 {[%clk 0:00:19]} 67. h5 {[%clk 0:00:33.2]} 67... Kd4
{[%clk 0:00:19.3]} 68. h6 {[%clk 0:00:33.6]} 68... Ke5 {[%clk 0:00:20.2]} 69. h7
{[%clk 0:00:33]} 69... Kd4 {[%clk 0:00:21.1]} 70. h8=B {[%clk 0:00:32.2]} 70...
Ke5 {[%clk 0:00:19.8]} 71. Kf7+ {[%clk 0:00:31.7]} 71... Kd6 {[%clk 0:00:16.5]}
72. Bd4 {[%clk 0:00:31.9]} 72... Bg6+ {[%clk 0:00:09]} 73. Kf6 {[%clk
0:00:29.7]} 73... Bf7 {[%clk 0:00:07.8]} 74. Qa6# {[%clk 0:00:29.4]} 1-0